bitfinex/quotes_ETHUSD_20250219
["timestamp","ask_amount","ask_price","bid_price","bid_amount"]
[1739934180962,2.3437292,2693.8,2693.4,0.7511]
[1739934181172,0.53437292,2693.7,2693.4,0.7511]
[1739934181537,5.42577122,2693.7,2692.7,0.74943509]
[1739934181719,1.8913983,2693.7,2692.8,3.71358]
[1739934181918,1.8913983,2693.7,2692.9,0.809]
[1739934182703,1.8913983,2693.7,2693.1,0.8324]
[1739934187608,2.16924535,2693.7,2693.1,0.8324]
[1739934187907,3.0,2693.6,2693.1,0.8324]
[1739934188875,2.16924535,2693.7,2693.1,0.8324]
[1739934189092,1.8913983,2693.7,2693.1,0.8324]
[1739934189756,1.8913983,2693.7,2693.2,0.26226494]
[1739934190381,1.8913983,2693.7,2693.3,0.7938]
[1739934190688,4.8913983,2694.1,2693.3,0.7938]
[1739934191193,4.8913983,2694.1,2693.4,0.26226494]
[1739934191766,4.8913983,2694.1,2693.5,0.7563]
[1739934193013,5.17753037,2694.1,2693.5,0.7563]
[1739934193194,5.94079322,2694.1,2693.5,0.7563]
[1739934193621,2.45509811,2693.9,2692.8,0.273]
[1739934193933,5.93693037,2694.1,2693.0,0.7563]
[1739934194140,5.17753037,2694.1,2693.0,0.7563]
[1739934194512,5.17753037,2694.1,2693.2,0.797]
[1739934194833,6.01610322,2694.1,2693.2,0.797]
[1739934195207,4.8913983,2694.1,2693.2,0.797]
[1739934196230,4.8913983,2694.1,2693.3,0.26242352]
[1739934196394,4.8913983,2694.1,2693.4,0.7746]
[1739934198438,4.8913983,2694.1,2693.5,0.26236431]
[1739934198749,4.8913983,2694.1,2693.5,1.05596431]
[1739934199651,1.8913983,2694.1,2693.5,1.05596431]
[1739934199850,1.8913983,2694.1,2693.5,0.7936]
[1739934202111,0.27863396,2694.6,2693.5,0.7936]
[1739934202313,0.27863396,2694.6,2693.7,0.7959]
[1739934202519,1.8913983,2695.0,2693.7,3.0]
[1739934202774,1.8913983,2695.0,2693.8,0.7567]
[1739934203051,4.34649641,2695.0,2693.8,0.7567]
[1739934203274,5.16031605,2695.0,2693.8,1.01885802]
[1739934203426,5.16031605,2695.0,2693.9,0.8293]
[1739934205357,5.16031605,2695.0,2694.1,1.54343018]
[1739934205552,5.16031605,2695.0,2694.2,0.7884]
[1739934205727,1.8913983,2695.0,2694.2,0.82551431]
[1739934206053,1.8913983,2695.0,2694.2,0.7884]
[1739934207746,2.45509811,2695.3,2694.2,0.7884]
[1739934207948,0.8109,2695.5,2694.2,0.7884]
[1739934208175,7.34649641,2695.6,2694.4,0.7685]
[1739934209143,3.0,2695.5,2694.4,0.7685]
[1739934209755,3.0,2695.5,2694.6,0.8019]
[1739934212546,1.8913983,2695.5,2694.6,0.8019]
[1739934214349,1.8913983,2695.5,2694.5,0.7529459]
[1739934214350,2.45509811,2695.0,2694.2,0.8074]
[1739934215955,2.45509811,2694.7,2694.2,0.8074]
[1739934216158,2.45509811,2694.7,2693.7,0.7831]
[1739934216375,2.45509811,2694.4,2693.7,0.7831]
[1739934216532,5.10859641,2694.4,2693.7,0.7831]
[1739934216738,0.51085964,2694.3,2693.7,0.7831]
[1739934216969,5.10859641,2694.4,2693.7,0.7831]
[1739934217172,2.45509811,2694.1,2693.4,1.53616185]
[1739934217340,2.45509811,2694.1,2693.4,0.7864]
[1739934218139,1.8913983,2694.3,2693.4,0.7864]
[1739934218842,2.45509811,2694.1,2693.4,0.7864]
[1739934219889,0.32575981,2694.0,2693.4,0.7864]
[1739934220052,2.45509811,2693.8,2693.4,0.7864]
[1739934220252,4.34649641,2693.8,2693.4,0.7864]
[1739934220870,4.34649641,2693.8,2693.1,0.84752982]
[1739934221070,4.34649641,2693.8,2693.1,0.09282982]
[1739934221071,0.7976,2693.7,2693.1,0.09282982]
[1739934221287,0.51440964,2693.6,2693.1,0.09282982]
[1739934221782,2.45509811,2693.5,2693.1,0.09282982]
[1739934222287,4.34649641,2693.5,2693.1,0.09282982]
[1739934223983,1.8913983,2693.5,2693.2,0.7939]
[1739934224185,4.8913983,2693.4,2693.1,0.09282982]
[1739934224487,2.45509811,2693.2,2693.1,0.09282982]
[1739934224782,7.34649641,2693.2,2693.1,0.09282982]
[1739934225377,1.8913983,2693.2,2693.1,0.09282982]
[1739934226290,4.34649641,2693.2,2693.1,0.09282982]
[1739934228163,8.11859641,2693.2,2693.1,0.09282982]
[1739934228354,8.93045605,2693.2,2693.1,0.09282982]
[1739934228557,5.93045605,2693.2,2693.1,0.09282982]
[1739934230292,1.8913983,2693.2,2693.1,0.09282982]
[1739934236194,2.45509811,2693.6,2693.1,0.09282982]
[1739934236494,2.45509811,2693.6,2693.2,0.8117]
[1739934240290,1.8913983,2693.7,2693.2,0.8117]
[1739934240720,2.45509811,2694.2,2693.2,0.8117]
[1739934240911,4.34649641,2694.2,2693.2,0.8117]
[1739934242697,4.34649641,2694.2,2693.2,0.8075]
[1739934243223,4.34649641,2694.2,2693.2,1.56218747]
[1739934243383,4.88214452,2694.2,2693.3,0.8075]
[1739934243587,2.45509811,2693.6,2693.3,0.8075]
[1739934243809,2.45509811,2693.6,2693.1,0.85502982]
[1739934244783,2.45509811,2693.6,2692.3,3.273]
[1739934244784,3.26159811,2693.2,2692.4,0.8096]
[1739934244988,2.45509811,2692.8,2692.4,0.8096]
[1739934246722,2.45509811,2692.5,2692.1,0.7598]
[1739934247292,2.45509811,2692.2,2692.1,0.005]
[1739934247699,8.12239641,2692.2,2692.1,0.005]
[1739934248308,8.86247712,2692.2,2692.1,0.005]
[1739934248510,3.55,2692.1,2690.9,0.7548]
[1739934248726,2.45509811,2691.3,2690.9,0.7548]
[1739934249910,2.45509811,2691.6,2690.9,0.7548]
[1739934250253,1.8913983,2692.0,2690.7,3.72601902]
[1739934250462,2.45509811,2691.6,2690.8,0.7995]
[1739934250753,2.45509811,2691.9,2690.7,0.72601902]
[1739934250952,2.45509811,2691.9,2691.2,0.8045]
[1739934251159,2.88974775,2691.9,2691.2,0.8045]
[1739934252505,1.8913983,2692.0,2691.2,0.8045]
[1739934252741,2.45509811,2692.2,2691.2,0.8045]
[1739934253340,2.45509811,2692.2,2691.3,0.7585]
[1739934259348,2.45509811,2691.9,2691.3,0.7585]
[1739934261945,3.0,2692.1,2691.3,0.7585]
[1739934262452,3.81673964,2692.1,2691.3,0.7585]
[1739934263159,0.81673964,2692.1,2691.3,0.7585]
[1739934263455,4.34649641,2692.2,2691.3,0.7585]
[1739934265057,3.0,2692.3,2691.3,0.7585]
[1739934265259,1.8913983,2692.4,2691.3,0.7585]
[1739934266135,1.8913983,2692.4,2691.4,0.8162]
[1739934267361,1.8913983,2692.4,2691.5,0.8162]
[1739934267542,2.36380694,2692.4,2691.5,0.8162]
[1739934271030,2.45509811,2692.2,2691.5,0.8162]
[1739934271450,2.45509811,2691.9,2691.5,0.8162]
[1739934272660,3.21129811,2692.2,2691.5,0.8162]
[1739934273064,2.45509811,2691.9,2691.1,0.149604]
[1739934273250,2.45509811,2691.9,2691.2,0.8112]
[1739934273584,3.62112981,2692.1,2691.2,0.8112]
[1739934273787,5.51252811,2692.1,2691.2,0.8112]
[1739934275161,5.51252811,2692.1,2691.3,0.26225942]
[1739934275366,5.51252811,2692.1,2691.4,0.791]
[1739934275367,0.79676262,2692.0,2691.4,0.791]
[1739934275566,2.45509811,2691.9,2691.3,0.26225942]
[1739934276753,2.45509811,2691.9,2691.2,0.791]
[1739934277991,3.0,2691.9,2691.2,0.791]
[1739934278694,3.8143259,2691.9,2691.2,0.791]
[1739934279508,4.09945544,2691.9,2691.3,0.26257223]
[1739934280267,4.8913983,2692.1,2691.4,0.8153]
[1739934281095,2.45509811,2691.9,2691.4,0.8153]
[1739934288580,5.45509811,2691.9,2691.4,0.8153]
[1739934293305,3.0,2691.9,2691.4,0.8153]
[1739934294096,3.0,2691.9,2691.5,1.03417572]
[1739934294306,3.73464964,2691.9,2691.5,1.03417572]
[1739934295400,3.0,2691.9,2691.5,0.7716]
[1739934304811,3.0,2691.9,2691.6,0.2630825]
[1739934305016,3.0,2691.9,2691.7,0.8071]
[1739934305178,1.8913983,2692.1,2691.7,0.8071]
[1739934306314,2.92750675,2692.4,2691.7,0.8071]
[1739934306315,3.0,2692.3,2691.7,0.8071]
[1739934308816,5.45509811,2692.4,2691.7,0.8071]
[1739934309016,6.22750675,2692.4,2691.8,0.26280621]
[1739934310406,6.22750675,2692.4,2691.7,0.8071]
[1739934311392,2.45509811,2692.1,2691.7,0.8071]
[1739934311886,3.22750675,2692.4,2691.7,0.8071]
[1739934314115,2.45509811,2692.4,2691.7,0.8071]
[1739934314933,1.8913983,2692.5,2691.7,0.8071]
[1739934315095,2.45509811,2692.7,2691.7,0.8071]
[1739934315434,2.45509811,2692.7,2691.8,0.26279698]
[1739934315596,2.45509811,2692.7,2691.9,0.8091]
[1739934316209,3.0,2692.9,2691.9,0.8091]
[1739934316408,4.34649641,2693.0,2692.0,0.27658355]
[1739934316621,0.45295335,2692.9,2692.1,0.8046]
[1739934316925,3.45295335,2692.9,2692.1,0.8046]
[1739934317919,3.0,2692.9,2692.1,0.8046]
[1739934318634,3.0,2692.9,2692.3,0.7713]
[1739934318832,1.8913983,2693.0,2692.3,0.80843894]
[1739934319200,1.8913983,2693.0,2692.3,0.7713]
[1739934320036,2.45509811,2693.3,2692.5,0.8329]
[1739934320939,2.45509811,2693.3,2692.6,0.74614301]
[1739934321144,2.45509811,2693.3,2692.7,0.7856]
[1739934322016,3.0,2693.5,2692.7,0.7856]
[1739934322017,2.45509811,2693.5,2692.7,0.7856]
[1739934322211,3.26823775,2693.5,2692.7,0.7856]
[1739934324250,2.45509811,2693.5,2692.7,0.7856]
[1739934326755,1.8913983,2693.6,2692.7,0.7856]
[1739934326954,1.8913983,2693.6,2692.8,0.7534]
[1739934327340,2.45509811,2693.8,2693.0,0.72639531]
[1739934327637,2.45509811,2693.8,2693.1,0.831]
[1739934333063,2.45509811,2693.2,2693.1,0.831]
[1739934333242,2.45509811,2693.2,2692.8,0.7547]
[1739934333967,2.45509811,2693.6,2692.8,0.7547]
[1739934334144,3.21929811,2693.9,2692.8,0.7547]
[1739934334541,2.45509811,2693.6,2692.8,0.7547]
[1739934334744,2.45509811,2693.6,2692.9,0.61147]
[1739934334967,2.45509811,2693.6,2693.0,0.7547]
[1739934336034,4.63215405,2694.2,2693.0,0.7547]
[1739934336247,3.0,2694.1,2693.0,0.7547]
[1739934336942,3.0,2694.1,2693.2,0.8178]
[1739934339889,3.8444554,2694.1,2693.2,0.8178]
[1739934340203,3.8444554,2694.1,2692.4,0.8245]
[1739934340204,2.45509811,2693.3,2692.4,0.8245]
[1739934340346,3.27399811,2693.3,2692.4,0.8245]
[1739934340552,3.0,2693.2,2692.4,0.8245]
[1739934340777,2.45509811,2693.0,2692.4,0.8245]
[1739934342084,1.8913983,2693.2,2692.4,0.8245]
[1739934343148,1.8913983,2693.2,2692.6,0.7734]
[1739934344457,1.8913983,2693.2,2692.3,3.71427]
[1739934344458,1.8913983,2693.2,2692.8,0.8092]
[1739934345560,1.8913983,2693.8,2692.8,0.8092]
[1739934345776,2.32604794,2693.8,2692.8,0.8092]
[1739934345960,2.32604794,2693.8,2692.9,0.26231765]
[1739934346371,2.32604794,2693.8,2692.9,0.60724058]
[1739934346567,2.32604794,2693.8,2693.0,0.7913]
[1739934348258,2.32604794,2693.8,2693.1,0.34492293]
[1739934348646,2.32604794,2693.8,2693.1,0.60739689]
[1739934348647,3.44328652,2693.7,2693.1,0.60739689]
[1739934348851,0.44328652,2693.7,2693.1,0.60739689]
[1739934349276,2.45509811,2693.6,2693.1,0.60739689]
[1739934349485,2.45509811,2693.9,2693.2,0.7855]
[1739934349790,0.24550981,2693.8,2693.2,0.7855]
[1739934349951,5.45509811,2694.1,2693.2,0.7855]
[1739934350893,5.45509811,2694.1,2693.3,0.60784034]
[1739934351189,5.45509811,2694.1,2693.4,0.7748]
[1739934352088,2.45509811,2693.8,2693.4,0.7748]
[1739934352850,2.45509811,2694.0,2693.4,0.7748]
[1739934353049,3.02917368,2694.0,2693.4,0.7748]
[1739934353254,2.45509811,2694.0,2693.4,0.7748]
[1739934363586,1.8913983,2694.1,2693.4,0.7748]
[1739934363811,4.34649641,2694.1,2693.4,0.7748]
[1739934363991,3.0,2694.0,2693.4,0.7748]
[1739934365311,1.8913983,2694.1,2693.4,0.7748]
[1739934366207,4.34649641,2694.4,2693.6,0.8222]
[1739934366710,3.0,2694.3,2693.6,0.8222]
[1739934369284,2.6800983,2695.0,2693.8,0.8197]
[1739934369486,2.45509811,2694.6,2693.8,0.8197]
[1739934369837,3.0,2694.9,2693.8,0.8197]
[1739934369838,2.45509811,2694.9,2693.8,0.8197]
[1739934370348,3.0,2694.8,2693.8,0.8197]
[1739934370638,5.45509811,2694.9,2693.8,0.8197]
[1739934372750,2.45509811,2695.3,2694.0,0.8321]
[1739934372953,1.8913983,2695.4,2694.2,0.8321]
[1739934373308,1.8913983,2695.4,2694.4,0.751]
[1739934373465,5.45509811,2695.3,2694.4,0.751]
[1739934374021,5.45509811,2695.3,2694.5,0.751]
[1739934374220,1.8913983,2695.4,2694.7,0.7519]
[1739934374635,2.45509811,2695.6,2694.7,0.7519]
[1739934380563,2.45509811,2695.3,2694.7,0.7519]
[1739934380799,2.45509811,2695.0,2694.7,0.7519]
[1739934380947,3.23469811,2695.0,2694.5,0.797]
[1739934381152,2.45509811,2694.7,2693.8,0.797]
[1739934381351,2.45509811,2694.7,2694.0,0.7581]
[1739934381855,2.45509811,2694.4,2694.0,0.7581]
[1739934383079,2.45509811,2694.4,2693.6,0.7581]
[1739934383378,2.45509811,2694.1,2693.6,0.7581]
[1739934383687,2.45509811,2693.8,2693.6,0.7581]
[1739934384182,2.45509811,2693.8,2692.7,0.7581]
[1739934384330,2.45509811,2693.8,2693.1,0.7581]
[1739934386709,3.0,2694.0,2693.1,0.7581]
[1739934386999,3.0,2694.0,2693.1,0.7512]
[1739934387347,3.0,2694.0,2693.0,0.74543451]
[1739934387348,1.8913983,2694.1,2693.2,0.03712309]
[1739934387652,2.72809811,2694.7,2693.3,3.71286]
[1739934387872,2.45509811,2694.7,2693.5,0.7512]
[1739934388178,1.8913983,2694.8,2693.9,0.72859662]
[1739934388337,4.34649641,2695.0,2694.0,0.7535]
[1739934388542,3.0,2694.9,2694.0,0.7535]
[1739934389065,1.8913983,2695.0,2694.2,0.7535]
[1739934389270,4.34649641,2695.0,2694.2,0.7535]
[1739934389575,5.10844605,2695.0,2694.2,0.7535]
[1739934389785,4.34649641,2695.0,2694.2,0.7535]
[1739934390650,3.0,2695.0,2694.2,0.7535]
[1739934390871,3.0,2695.0,2694.0,5.36]
[1739934391175,4.34649641,2695.7,2694.3,0.8041]
[1739934391377,2.45509811,2695.7,2694.5,0.55]
[1739934391563,2.45509811,2695.8,2694.6,0.8041]
[1739934391771,2.82237979,2695.8,2694.6,0.8041]
[1739934391957,3.0,2695.7,2694.6,0.8041]
[1739934393083,3.49739409,2696.0,2694.8,0.7752]
[1739934393261,3.0,2695.9,2694.8,0.7752]
[1739934393470,3.64973941,2695.9,2694.8,0.7752]
[1739934396594,2.45509811,2695.7,2694.8,0.7752]
[1739934396989,5.45509811,2695.7,2694.8,0.7752]
[1739934398398,3.0,2695.7,2694.7,0.74902295]
[1739934398577,3.0,2695.7,2694.8,0.8138]
[1739934399907,1.8913983,2695.8,2694.8,0.8138]
[1739934400480,2.45509811,2695.7,2694.8,0.8138]
[1739934400888,2.45509811,2695.7,2694.9,0.03710213]
[1739934401096,2.45509811,2695.7,2694.9,0.8138]
[1739934401902,2.45509811,2695.7,2695.0,0.85090212]
[1739934402104,3.0,2695.7,2695.0,0.8138]
[1739934403533,2.45509811,2695.3,2694.7,0.74902295]
[1739934403741,2.45509811,2694.8,2693.8,0.8138]
[1739934404621,2.45509811,2694.5,2693.8,0.8138]
[1739934404835,2.45509811,2694.5,2693.8,1.43118]
[1739934405000,3.0,2694.7,2693.8,1.43118]
[1739934405344,3.0,2694.7,2693.9,0.8277]
[1739934405695,0.28200062,2694.8,2694.0,0.0371143]
[1739934405933,0.8026,2695.0,2694.0,0.8213]
[1739934406236,4.31750964,2695.0,2694.0,0.8213]
[1739934406431,2.45509811,2694.8,2694.0,0.8213]
[1739934406650,2.45509811,2694.8,2694.0,0.85841289]
[1739934407799,2.45509811,2694.8,2694.0,0.8213]
[1739934409600,3.0,2695.0,2694.1,0.03711432]
[1739934409804,3.0,2695.0,2694.2,0.8184]
[1739934410140,4.62678965,2695.1,2694.2,0.8184]
[1739934410661,2.45509811,2694.8,2694.2,0.8184]
[1739934412250,3.0,2695.0,2694.2,0.8184]
[1739934414778,2.45509811,2694.8,2694.2,0.8184]
[1739934421000,2.45324241,2694.8,2694.2,0.8184]
[1739934424489,3.0,2695.0,2694.2,0.8184]
[1739934425881,3.0,2695.0,2693.9,0.7711]
[1739934426521,3.0,2695.0,2694.0,0.7711]
[1739934426719,3.0,2695.0,2694.2,0.7711]
[1739934427223,3.0,2695.0,2694.4,0.7711]
[1739934427811,2.73539135,2695.1,2694.5,0.03710866]
[1739934427812,2.45509811,2695.1,2694.5,0.03710866]
[1739934428020,2.45509811,2695.4,2694.6,0.7711]
[1739934428226,2.45509811,2695.1,2694.6,0.7711]
[1739934430215,2.45509811,2695.1,2694.4,0.7638]
[1739934430216,2.45509811,2694.8,2694.4,0.7638]
[1739934433687,7.34649641,2695.1,2694.4,0.7638]
[1739934434787,7.34649641,2695.1,2694.5,0.26239615]
[1739934435082,8.10887038,2695.1,2694.5,0.26239615]
[1739934435286,2.45509811,2694.8,2694.5,0.26239615]
[1739934435518,5.45509811,2694.8,2694.5,0.26239615]
[1739934435883,5.45509811,2694.8,2694.4,0.7638]
[1739934436889,5.45509811,2694.8,2693.9,0.7756]
[1739934437090,6.08235792,2694.8,2693.9,0.7756]
[1739934437937,6.08235792,2694.8,2694.0,0.27639154]
[1739934438440,6.08235792,2694.8,2694.0,0.53888489]
[1739934439633,6.08235792,2694.8,2694.1,0.26249335]
[1739934440327,2.45509811,2694.5,2694.1,0.26249335]
[1739934440957,2.45509811,2694.5,2693.9,0.7756]
[1739934441231,2.45509811,2694.5,2693.9,1.46521197]
[1739934441737,2.45509811,2694.5,2693.9,0.7756]
[1739934442242,2.45509811,2694.5,2694.0,0.26236009]
[1739934444139,2.45509811,2694.5,2693.9,0.7756]
[1739934445739,3.8021,2694.4,2693.9,0.7756]
[1739934445941,2.45509811,2694.2,2693.3,0.7783]
[1739934446142,2.45509811,2693.9,2693.3,0.7783]
[1739934446715,3.8021,2694.1,2693.3,1.53373611]
[1739934446916,3.0,2694.2,2693.4,0.8091]
[1739934447121,1.8913983,2694.4,2693.4,0.8091]
[1739934447447,1.8913983,2694.4,2693.5,0.8257]
[1739934447448,4.8913983,2694.4,2693.5,0.8257]
[1739934449147,4.8913983,2694.4,2693.7,0.8159]
[1739934450429,0.81619964,2694.3,2693.7,0.8159]
[1739934451310,3.0,2694.4,2693.7,0.8159]
[1739934451708,2.45509811,2693.9,2693.7,0.8159]
[1739934451967,2.45509811,2693.9,2693.3,0.7763]
[1739934452712,3.0,2693.8,2693.3,0.7763]
[1739934454216,5.45509811,2694.2,2693.3,0.7763]
[1739934454422,5.45509811,2694.2,2693.4,0.61363]
[1739934454841,3.0,2694.2,2693.5,0.7954]
[1739934455046,3.0,2694.4,2693.5,0.7954]
[1739934455571,5.45509811,2694.5,2693.5,0.7954]
[1739934456133,5.45509811,2694.5,2693.7,0.7755]
[1739934456333,6.34578961,2694.5,2693.7,0.7755]
[1739934457257,0.28136236,2694.6,2693.9,0.8302]
[1739934458258,3.0,2694.6,2693.9,0.8302]
[1739934458752,2.45509811,2694.4,2693.9,0.8302]
[1739934458966,2.45509811,2694.4,2693.6,0.768]
[1739934459172,3.32569981,2694.3,2693.6,0.768]
[1739934462251,2.21709811,2694.3,2693.6,0.768]
[1739934462429,2.45509811,2694.1,2693.6,0.768]
[1739934463080,3.28219811,2694.1,2693.6,0.768]
[1739934464757,3.28219811,2694.1,2692.6,3.55]
[1739934464758,2.45509811,2693.8,2693.2,0.7901]
[1739934467476,4.8913983,2694.0,2693.2,0.7901]
[1739934468337,2.45509811,2693.8,2693.2,0.7901]
[1739934473473,2.45509811,2693.5,2693.2,0.7901]
[1739934474579,5.45509811,2693.8,2693.2,0.7901]
[1739934474789,6.26885775,2693.8,2693.2,0.7901]
[1739934475789,5.45509811,2693.8,2693.2,0.7901]
[1739934476686,5.45509811,2693.8,2693.3,0.74730445]
[1739934476987,5.45509811,2693.8,2693.4,0.7859]
[1739934479966,2.45509811,2693.8,2693.4,0.7859]
[1739934481466,3.24019811,2693.8,2692.7,0.8223]
[1739934481665,3.32401981,2693.7,2692.9,0.8223]
[1739934482268,3.32401981,2693.7,2692.9,1.57369988]
[1739934482596,3.32401981,2693.7,2693.0,0.276923]
[1739934482792,3.0,2693.7,2693.1,0.8235]
[1739934484013,3.0,2694.0,2693.1,0.8235]
[1739934484630,3.0,2694.0,2693.2,0.26293047]
[1739934484774,3.0,2694.0,2693.3,0.7864]
[1739934485927,3.59459792,2694.3,2693.3,0.7864]
[1739934486073,0.35945979,2694.2,2693.3,0.7864]
[1739934486409,3.35945979,2694.2,2693.3,0.7864]
[1739934487909,3.35945979,2694.2,2693.4,0.26289911]
[1739934488400,3.35945979,2694.2,2693.5,0.7967]
[1739934490276,2.45509811,2694.0,2693.5,0.7967]
[1739934490482,3.0,2693.9,2693.5,0.7967]
[1739934491701,5.45509811,2693.7,2693.1,0.7549]
[1739934491901,2.45509811,2693.4,2693.1,0.7549]
[1739934492413,2.45509811,2693.4,2692.3,8.81]
[1739934492414,2.45509811,2693.4,2692.3,0.7774]
[1739934492713,3.26669811,2693.4,2692.3,0.7774]
[1739934493117,3.0,2693.3,2692.4,1.51607057]
[1739934493317,2.45509811,2693.1,2692.4,0.7775]
[1739934493825,5.45509811,2692.8,2692.5,0.26330339]
[1739934494115,5.45509811,2692.8,2692.5,0.54047267]
[1739934494419,6.07913792,2692.8,2692.5,0.54047267]
[1739934494921,6.07913792,2692.8,2692.5,0.27716928]
[1739934495586,6.07913792,2692.8,2692.1,0.7851]
[1739934495913,2.45509811,2692.2,2691.8,0.8161]
[1739934496119,3.24550981,2692.1,2691.8,0.8161]
[1739934496318,3.0,2692.1,2691.8,0.8161]
[1739934497391,3.0,2692.2,2691.8,0.8161]
[1739934499928,1.8913983,2692.3,2691.8,0.8161]
[1739934500826,3.0,2692.2,2691.8,0.8161]
[1739934501058,2.45509811,2692.3,2691.8,0.8161]
[1739934501392,3.0,2692.2,2691.8,0.8161]
[1739934502427,2.45509811,2692.0,2691.5,0.7512]
[1739934503215,5.45509811,2692.0,2691.5,0.7512]
[1739934503418,2.45509811,2691.7,2691.5,0.7512]
[1739934503726,2.45509811,2691.7,2691.1,0.149604]
[1739934503727,5.45509811,2691.7,2691.1,0.149604]
[1739934503929,3.7517,2691.3,2691.1,0.149604]
[1739934504293,3.7517,2691.3,2689.7,0.8328]
[1739934504294,1.6017,2691.2,2689.7,0.8328]
[1739934504529,2.45509811,2690.4,2689.7,0.8328]
[1739934505453,2.45509811,2690.1,2689.7,0.8328]
[1739934505595,3.0,2690.3,2689.7,0.8328]
[1739934505795,1.8913983,2690.9,2689.7,0.8328]
[1739934505996,2.45509811,2690.5,2689.7,0.8328]
[1739934506201,2.45509811,2690.2,2689.7,0.8328]
[1739934506852,3.0,2690.7,2689.7,0.8328]
[1739934506853,2.45509811,2690.5,2689.7,0.8328]
[1739934507351,2.45509811,2690.2,2689.7,0.8328]
[1739934509936,2.45509811,2689.9,2689.7,0.8328]
[1739934510090,3.24550981,2689.8,2689.2,0.74171227]
[1739934510297,2.45509811,2689.6,2689.1,0.7898]
[1739934511135,2.13690811,2689.8,2689.1,0.7898]
[1739934511506,1.8913983,2689.8,2689.1,0.7898]
[1739934514140,1.8913983,2689.8,2689.1,3.0]
[1739934514346,3.0,2690.4,2689.2,0.8052]
[1739934514852,5.45509811,2690.5,2689.2,0.8052]
[1739934515219,5.45509811,2690.5,2689.5,0.7619005]
[1739934515421,0.57300981,2690.4,2689.6,0.774]
[1739934515654,1.8913983,2690.7,2689.6,0.774]
[1739934516349,2.45509811,2690.5,2689.6,0.774]
[1739934517653,2.45509811,2690.5,2689.6,0.81117594]
[1739934517815,2.45509811,2690.5,2689.6,0.774]
[1739934519550,2.88974775,2690.5,2689.6,0.774]
[1739934519752,2.45509811,2690.2,2689.6,0.774]
[1739934519953,4.34649641,2690.2,2689.6,0.774]
[1739934523853,1.8913983,2690.2,2689.6,0.774]
[1739934524041,2.45509811,2690.2,2689.2,1.54093734]
[1739934524241,0.18913983,2690.1,2689.3,0.7856]
[1739934525958,2.45509811,2689.9,2689.3,0.7856]
[1739934527859,1.8913983,2690.0,2689.3,0.7856]
[1739934529162,2.45509811,2689.9,2689.3,0.7856]
[1739934529461,0.43464964,2689.8,2689.3,0.7856]
[1739934529634,2.45509811,2689.6,2689.3,0.7856]
[1739934529842,2.45509811,2689.6,2688.9,0.7889]
[1739934530524,2.45509811,2689.6,2689.0,0.26212149]
[1739934531728,2.45509811,2689.6,2688.9,0.7889]
[1739934531923,0.54550981,2689.5,2688.9,0.7889]
[1739934532126,0.54550981,2689.5,2688.4,0.149604]
[1739934532127,0.8051,2689.0,2688.4,0.149604]
[1739934532362,1.3551,2688.6,2687.2,0.8125]
[1739934532562,2.45509811,2688.0,2687.2,0.8125]
[1739934532725,2.45509811,2688.4,2687.5,0.7981]
[1739934532928,2.45509811,2688.5,2687.5,0.7981]
[1739934533569,2.45509811,2688.2,2687.5,0.7981]
[1739934533943,2.45509811,2688.2,2687.6,0.27735109]
[1739934534366,2.70060792,2688.2,2687.6,0.27735109]
[1739934534760,5.45509811,2688.5,2687.7,0.2629894]
[1739934535275,1.8913983,2688.6,2687.8,0.03720273]
[1739934535439,2.73309811,2688.8,2687.8,0.7706]
[1739934535638,2.45509811,2688.8,2687.8,0.7706]
[1739934535862,3.24550981,2688.7,2687.8,0.7706]
[1739934536572,3.24550981,2688.7,2687.9,0.2629894]
[1739934536870,0.24550981,2688.7,2687.9,0.2629894]
[1739934537576,0.24550981,2688.7,2688.0,0.7669]
[1739934537867,0.28281255,2689.0,2688.1,0.03719718]
[1739934538059,0.28281255,2689.0,2688.2,0.8051]
[1739934538969,0.28281255,2689.0,2688.3,0.2629894]
[1739934539180,2.45509811,2689.1,2688.3,0.2629894]
[1739934540276,2.45509811,2689.1,2688.4,0.2629894]
[1739934540497,0.73464964,2689.0,2688.4,0.2629894]
[1739934540637,5.45509811,2689.1,2688.4,0.2629894]
[1739934540976,5.21232957,2689.1,2688.5,0.7744]
[1739934542055,2.21232957,2689.1,2688.5,0.7744]
[1739934543626,2.45509811,2688.8,2688.5,0.7744]
[1739934543938,2.45509811,2688.8,2688.6,0.26229039]
[1739934544154,2.70060792,2688.8,2688.6,0.26229039]
[1739934545284,2.70060792,2688.8,2688.1,0.7716]
[1739934547185,2.70060792,2688.8,2688.2,0.26251153]
[1739934547644,3.0,2688.7,2688.2,0.26251153]
[1739934548045,3.0,2688.7,2688.1,0.7716]
[1739934548663,3.57006079,2688.7,2688.1,0.7716]
[1739934549292,3.0,2688.7,2688.1,0.7716]
[1739934550474,2.45509811,2688.8,2688.1,0.7716]
[1739934550676,2.45509811,2688.8,2688.2,0.26286814]
[1739934551980,2.45509811,2688.8,2688.1,0.7716]
[1739934554186,4.34649641,2689.1,2688.1,0.7716]
[1739934554402,2.45509811,2688.8,2688.3,0.7564]
[1739934556155,2.45509811,2688.8,2687.8,3.76211506]
[1739934556291,2.45509811,2688.2,2688.0,0.8095]
[1739934556635,2.70060792,2688.2,2687.6,0.75211582]
[1739934556808,3.48440792,2688.2,2687.6,0.75211582]
[1739934558040,2.45509811,2687.9,2687.6,0.75211582]
[1739934560433,2.45509811,2687.9,2687.4,0.8095]
[1739934561204,3.00060792,2687.9,2687.4,0.8095]
[1739934562193,3.0,2688.1,2687.4,0.8095]
[1739934562415,1.8913983,2688.4,2687.5,0.03720472]
[1739934562630,1.8913983,2688.4,2687.5,0.779]
[1739934563344,4.8913983,2688.4,2687.6,0.26382947]
[1739934563541,4.8913983,2688.4,2687.6,0.5421843]
[1739934564043,2.73705496,2688.4,2687.6,0.5421843]
[1739934565146,2.73705496,2688.4,2687.7,0.26382947]
[1739934565835,2.73705496,2688.4,2687.8,0.8311]
[1739934566037,2.45509811,2688.5,2687.8,0.8311]
[1739934567426,2.45509811,2688.5,2687.9,0.26375647]
[1739934568326,2.45509811,2688.5,2688.0,0.8085]
[1739934569088,1.8913983,2688.8,2688.1,0.03719808]